bitfinex-derivatives/quotes_BTCF0:USTF0_20220103
["timestamp","ask_amount","ask_price","bid_price","bid_amount"]
[1641233831688,0.194,46597.0,46596.0,1.21045044]
[1641233831891,0.194,46597.0,46593.0,2.17950711]
[1641233832089,0.193,46597.0,46593.0,2.17950711]
[1641233832892,0.92379451,46599.0,46593.0,2.17950711]
[1641233833492,1.11079451,46599.0,46593.0,2.17950711]
[1641233834714,2.45457553,46596.0,46593.0,2.17950711]
[1641233835109,0.18,46595.0,46593.0,2.17950711]
[1641233835913,0.18,46595.0,46593.0,0.96905667]
[1641233836213,0.001,46594.0,46593.0,0.96905667]
[1641233836416,0.14133567,46594.0,46593.0,0.96905667]
[1641233836614,0.2313231,46594.0,46593.0,0.96905667]
[1641233836812,1.25460761,46594.0,46588.0,1.21045044]
[1641233837611,1.44360761,46594.0,46588.0,1.21045044]
[1641233838313,0.84328451,46593.0,46588.0,1.21045044]
[1641233838514,0.18,46589.0,46588.0,1.21045044]
[1641233838715,0.08911,46589.0,46588.0,1.21045044]
[1641233839114,0.26911,46589.0,46588.0,1.21045044]
[1641233839315,0.32971575,46589.0,46588.0,1.21045044]
[1641233839513,0.51571575,46589.0,46588.0,1.21045044]
[1641233840316,0.33571575,46589.0,46588.0,1.21045044]
[1641233840515,0.33471575,46589.0,46586.0,2.17950711]
[1641233840814,0.001,46587.0,46586.0,2.17950711]
[1641233841417,0.001,46587.0,46586.0,0.96905667]
[1641233841619,0.188,46587.0,46586.0,0.96905667]
[1641233841815,0.187,46587.0,46586.0,0.96905667]
[1641233842016,0.188,46587.0,46585.0,1.21045044]
[1641233842217,0.187,46587.0,46585.0,1.21045044]
[1641233842417,0.001,46586.0,46585.0,1.21045044]
[1641233843619,0.19,46586.0,46585.0,1.21045044]
[1641233844421,0.189,46586.0,46585.0,1.21045044]
[1641233844919,0.84328451,46590.0,46585.0,1.21045044]
[1641233845121,0.06766351,46589.0,46585.0,1.21045044]
[1641233846224,0.001,46586.0,46585.0,1.21045044]
[1641233846625,0.06766351,46589.0,46585.0,1.21045044]
[1641233846825,0.001,46586.0,46585.0,1.21045044]
[1641233847625,0.189,46586.0,46585.0,1.21045044]
[1641233848026,0.189,46586.0,46582.0,1.45103536]
[1641233848228,0.188,46586.0,46582.0,1.45103536]
[1641233848425,0.188,46586.0,46583.0,0.01211373]
[1641233849027,0.84328451,46587.0,46585.0,0.001]
[1641233849225,0.84328451,46587.0,46583.0,0.01211373]
[1641233849428,0.84328451,46587.0,46582.0,1.45103536]
[1641233849628,0.186,46587.0,46583.0,1.45103536]
[1641233849828,0.186,46587.0,46583.0,1.46314893]
[1641233850027,0.186,46587.0,46586.0,0.001]
[1641233850326,0.186,46587.0,46586.0,0.002]
[1641233850527,0.186,46587.0,46586.0,0.14233567]
[1641233850729,0.84328451,46591.0,46586.0,0.14233567]
[1641233850926,0.84328451,46591.0,46590.0,0.001]
[1641233851127,0.84328451,46591.0,46590.0,0.08388]
[1641233851328,0.84328451,46591.0,46590.0,0.26388]
[1641233851530,1.20182279,46593.0,46590.0,0.48434137]
[1641233851727,0.19380715,46615.0,46592.0,0.001]
[1641233851929,0.02145969,46614.0,46595.0,0.18]
[1641233852128,1.19744988,46596.0,46595.0,0.18]
[1641233852328,1.19744988,46596.0,46595.0,0.182]
[1641233852531,1.19744988,46596.0,46595.0,0.32233567]
[1641233852729,0.08343811,46608.0,46595.0,0.32233567]
[1641233852928,0.14033567,46612.0,46601.0,0.18]
[1641233853127,0.14033567,46612.0,46601.0,0.2416]
[1641233853529,0.33567902,46616.0,46608.0,0.20145454]
[1641233853731,0.33567902,46616.0,46610.0,0.001]
[1641233853931,0.33567902,46616.0,46610.0,0.03324612]
[1641233854129,0.80728402,46617.0,46610.0,0.03224612]
[1641233854329,0.16421741,46615.0,46610.0,0.03224612]
[1641233854532,0.16421741,46615.0,46614.0,0.32133567]
[1641233854731,0.16421741,46615.0,46614.0,0.38777567]
[1641233855530,0.16421741,46615.0,46614.0,0.39877567]
[1641233855731,0.16421741,46615.0,46614.0,1.36783234]
[1641233855931,0.471605,46620.0,46614.0,1.36783234]
[1641233856130,0.14033567,46625.0,46614.0,1.36683234]
[1641233856734,0.07104502,46624.0,46614.0,1.36683234]
[1641233856936,0.07104502,46624.0,46614.0,1.17583234]
[1641233857336,0.07104502,46624.0,46615.0,0.96905667]
[1641233858940,0.07104502,46624.0,46616.0,0.96905667]
[1641233859342,0.18,46622.0,46616.0,0.96905667]
[1641233859540,0.07191,46622.0,46616.0,1.15505667]
[1641233859742,0.07191,46622.0,46617.0,0.96905667]
[1641233859943,0.001,46618.0,46617.0,0.96905667]
[1641233860141,0.07191,46622.0,46617.0,0.96905667]
[1641233860340,0.001,46618.0,46617.0,0.96905667]
[1641233860940,0.001,46618.0,46614.0,0.14033567]
[1641233861141,0.32033567,46625.0,46614.0,0.14033567]
[1641233861343,0.32033567,46625.0,46614.0,1.35097125]
[1641233861541,0.32033567,46625.0,46614.0,1.53897125]
[1641233862141,0.05451124,46624.0,46615.0,0.96864438]
[1641233863344,0.05451124,46624.0,46616.0,0.60534192]
[1641233863543,0.22251124,46624.0,46616.0,0.60534192]
[1641233863744,0.001,46617.0,46616.0,0.60534192]
[1641233864345,0.10309939,46620.0,46616.0,0.60534192]
[1641233864949,0.10309939,46620.0,46616.0,1.5739863]
[1641233865549,0.27109939,46620.0,46616.0,1.7609863]
[1641233865747,0.27109939,46620.0,46616.0,0.79234192]
[1641233865947,0.168,46620.0,46616.0,0.79234192]
[1641233866848,0.168,46620.0,46617.0,0.96864438]
[1641233867048,0.14033567,46625.0,46617.0,1.5739863]
[1641233867662,0.30833567,46625.0,46617.0,1.7599863]
[1641233868061,0.06283907,46624.0,46617.0,1.7599863]
[1641233868261,0.06283907,46624.0,46617.0,0.79134192]
[1641233868563,0.06283907,46624.0,46618.0,0.60534192]
[1641233869464,0.06283907,46624.0,46619.0,0.60534192]
[1641233869663,0.24483907,46624.0,46619.0,0.60534192]
[1641233870266,0.24483907,46624.0,46620.0,0.60534192]
[1641233870964,0.06283907,46624.0,46620.0,0.60534192]
[1641233871565,0.21883907,46624.0,46620.0,0.76334192]
[1641233871766,0.156,46624.0,46620.0,0.76334192]
[1641233872968,0.14033567,46625.0,46620.0,0.60534192]
[1641233873169,0.09028472,46624.0,46620.0,0.60534192]
[1641233873571,0.09028472,46624.0,46620.0,0.77234192]
[1641233874976,0.09028472,46624.0,46620.0,0.60534192]
[1641233875578,0.175,46624.0,46620.0,0.77934192]
[1641233876581,0.175,46624.0,46623.0,0.02144743]
[1641233876980,0.14033567,46625.0,46623.0,0.02144743]
[1641233877179,0.14033567,46625.0,46623.0,0.62678935]
[1641233877580,0.31733567,46625.0,46623.0,0.80578935]
[1641233878482,0.31733567,46625.0,46624.0,0.60534192]
[1641233878884,0.14033567,46625.0,46624.0,0.60534192]
[1641233879083,0.14033567,46625.0,46623.0,0.62678935]
[1641233879683,0.31733567,46625.0,46623.0,0.80578935]
[1641233879883,0.31733567,46625.0,46623.0,0.78434192]
[1641233881088,0.14033567,46625.0,46623.0,0.60534192]
[1641233881286,0.001,46624.0,46623.0,0.60534192]
[1641233881486,0.14033567,46625.0,46623.0,0.60534192]
[1641233881688,0.001,46624.0,46623.0,0.78334192]
[1641233882489,0.001,46624.0,46623.0,1.75184143]
[1641233883091,0.001,46624.0,46623.0,1.57384143]
[1641233883490,0.14033567,46625.0,46623.0,1.57384143]
[1641233883691,0.176,46624.0,46623.0,1.75184143]
[1641233883892,0.175,46624.0,46623.0,1.75184143]
[1641233884291,0.176,46624.0,46623.0,1.75184143]
[1641233884493,0.175,46624.0,46623.0,1.75184143]
[1641233885596,0.174,46624.0,46623.0,1.75184143]
[1641233886294,0.174,46624.0,46623.0,0.78334192]
[1641233886495,0.175,46624.0,46623.0,0.178]
[1641233886895,0.14033567,46625.0,46620.0,0.0214488]
[1641233887696,0.28733567,46625.0,46620.0,0.2134488]
[1641233889098,0.14033567,46625.0,46620.0,0.0214488]
[1641233889699,0.14033567,46625.0,46620.0,0.2124488]
[1641233891000,0.14033567,46625.0,46620.0,0.0214488]
[1641233891701,0.29033567,46625.0,46620.0,0.2134488]
[1641233893603,0.44033567,46625.0,46620.0,0.4054488]
[1641233893821,0.29033567,46625.0,46620.0,0.2134488]
[1641233894007,0.15,46625.0,46620.0,0.2134488]
[1641233895006,0.09599386,46626.0,46620.0,0.0214488]
[1641233895718,0.14033567,46625.0,46620.0,0.2134488]
[1641233896913,0.14033567,46625.0,46620.0,0.0214488]
[1641233897713,0.29033567,46625.0,46620.0,0.2134488]
[1641233898515,0.29033567,46625.0,46622.0,1.21063558]
[1641233898815,1.19047499,46623.0,46622.0,1.21063558]
[1641233899615,1.34147499,46623.0,46622.0,1.39863558]
[1641233901016,1.19047499,46623.0,46622.0,2.17906383]
[1641233901624,1.34147499,46623.0,46622.0,2.36706383]
[1641233903127,1.19047499,46623.0,46622.0,2.17906383]
[1641233903829,1.34147499,46623.0,46622.0,2.36706383]
[1641233904927,1.19047499,46623.0,46622.0,2.17906383]
[1641233905630,1.34147499,46623.0,46622.0,2.36706383]
[1641233906833,0.151,46623.0,46622.0,2.36706383]
[1641233907131,1.19047499,46624.0,46622.0,2.17906383]
[1641233907532,1.19047499,46624.0,46622.0,0.96842825]
[1641233907733,1.34047499,46624.0,46622.0,1.15542825]
[1641233908336,1.34047499,46624.0,46623.0,0.02144695]
[1641233908532,1.34047499,46624.0,46623.0,0.9898752]
[1641233908834,1.34047499,46624.0,46623.0,2.20038713]
[1641233909033,1.19047499,46624.0,46623.0,2.20038713]
[1641233909633,1.36047499,46624.0,46623.0,1.41895888]
[1641233910436,1.36047499,46624.0,46623.0,2.38738713]
[1641233912735,1.36047499,46624.0,46623.0,2.38838713]
[1641233913135,1.19047499,46624.0,46623.0,2.20138713]
[1641233913736,0.09886072,46624.0,46623.0,2.39718113]
[1641233913936,0.14033567,46632.0,46623.0,2.39718113]
[1641233914138,0.14033567,46632.0,46624.0,0.18]
[1641233914338,0.14033567,46632.0,46627.0,0.18]
[1641233914538,0.14033567,46632.0,46630.0,0.02144433]
[1641233915236,0.14033567,46636.0,46630.0,0.02144433]
[1641233915437,0.14033567,46636.0,46635.0,0.02144183]
[1641233915639,0.14033567,46636.0,46635.0,0.11642183]
[1641233916138,0.24875671,46639.0,46635.0,0.2567575]
[1641233916338,0.0001,46640.0,46635.0,0.2567575]
[1641233917342,0.0001,46640.0,46636.0,1.57354544]
[1641233918141,0.0001,46640.0,46637.0,0.60511719]
[1641233919041,0.0001,46640.0,46637.0,1.57354544]
[1641233919641,0.0001,46640.0,46637.0,1.76454544]
[1641233920444,0.0001,46640.0,46638.0,0.96842825]
[1641233920741,0.0001,46640.0,46638.0,1.57354544]
[1641233921342,0.0001,46640.0,46638.0,0.60511719]
[1641233921742,0.0001,46640.0,46638.0,0.79511719]
[1641233922143,0.0001,46640.0,46639.0,0.009794]
[1641233923649,0.0001,46640.0,46639.0,0.198794]
[1641233924647,0.0001,46640.0,46639.0,1.1669531]
[1641233924847,0.14043567,46650.0,46639.0,1.77207029]
[1641233925047,0.14043567,46650.0,46639.0,1.58307029]
[1641233925347,0.14043567,46650.0,46643.0,0.02143804]
[1641233925748,0.14043567,46650.0,46648.0,0.001]
[1641233925948,0.14043567,46650.0,46644.0,0.009794]
[1641233926559,0.14043567,46650.0,46649.0,0.001]
[1641233926750,0.0001,46650.0,46649.0,0.001]
[1641233927649,0.0001,46650.0,46649.0,0.196]
[1641233927849,0.0001,46650.0,46649.0,0.195]
[1641233928053,0.0001,46650.0,46649.0,0.196]
[1641233928753,0.0001,46650.0,46649.0,0.197]
[1641233929150,0.0001,46650.0,46649.0,0.002]
[1641233929350,0.0001,46650.0,46649.0,0.001]
[1641233929750,0.0001,46650.0,46649.0,0.196]
[1641233930152,0.0001,46650.0,46649.0,0.195]
[1641233930953,0.0001,46650.0,46647.0,0.1617719]
[1641233931653,0.0001,46650.0,46647.0,0.3557719]
[1641233932555,0.0001,46650.0,46647.0,0.3655659]
[1641233933054,0.0001,46650.0,46647.0,0.1715659]
[1641233933654,0.0001,46650.0,46647.0,0.3665659]
[1641233934657,0.0001,46650.0,46647.0,0.97168309]
[1641233934962,0.0001,46650.0,46647.0,0.77668309]
[1641233935761,0.0001,46650.0,46647.0,0.97368309]
[1641233936372,0.0001,46650.0,46647.0,0.3685659]
[1641233936963,0.0001,46650.0,46647.0,0.1715659]
[1641233937363,0.0001,46650.0,46647.0,0.77668309]
[1641233937763,0.0001,46650.0,46647.0,0.97168309]
[1641233938164,0.0001,46650.0,46647.0,0.3665659]
[1641233938573,0.0001,46650.0,46647.0,0.34512967]
[1641233939069,0.18,46648.0,46647.0,0.61491119]
[1641233939271,0.27221,46648.0,46647.0,0.61491119]
[1641233939472,0.27221,46648.0,46647.0,0.60511719]
[1641233939670,0.27221,46648.0,46647.0,0.79711719]
[1641233939868,0.27221,46648.0,46644.0,1.21022149]
[1641233940069,0.18,46645.0,46644.0,1.21022149]
[1641233940269,1.307,46645.0,46637.0,1.45103536]
[1641233940469,0.181,46638.0,46637.0,1.45103536]
[1641233940672,0.181,46638.0,46635.0,0.14033567]
[1641233940673,0.25224,46638.0,46635.0,0.14033567]
[1641233940968,0.001,46636.0,46635.0,0.14033567]
[1641233941168,0.07124,46638.0,46635.0,0.14033567]
[1641233941372,0.001,46636.0,46635.0,0.14033567]
[1641233941768,0.001,46636.0,46635.0,0.32333567]
[1641233941969,0.25024,46638.0,46635.0,0.32333567]
[1641233942368,0.001,46636.0,46635.0,0.32333567]
[1641233943183,0.001,46636.0,46635.0,0.14033567]
[1641233943784,0.182,46636.0,46635.0,0.32533567]
[1641233944385,0.181,46636.0,46635.0,0.32533567]
[1641233944984,0.09235619,46642.0,46635.0,0.14033567]
[1641233945184,0.18,46641.0,46635.0,0.14033567]
[1641233945385,0.09235619,46642.0,46635.0,0.14033567]
[1641233945585,0.18,46640.0,46635.0,0.14033567]
[1641233945785,0.18,46640.0,46635.0,0.32333567]
[1641233945985,0.179,46641.0,46635.0,0.32333567]
[1641233946991,0.179,46641.0,46635.0,0.14033567]
[1641233947192,0.18,46642.0,46635.0,0.14033567]
[1641233947592,0.06356561,46645.0,46635.0,0.14033567]
[1641233947792,0.182,46642.0,46635.0,0.32333567]
[1641233948187,0.182,46642.0,46636.0,0.02144125]
[1641233948788,0.182,46642.0,46641.0,0.001]
[1641233949188,0.0001,46650.0,46641.0,0.02243712]
[1641233949392,0.0001,46650.0,46641.0,0.02143712]
[1641233949791,0.1561,46650.0,46641.0,0.20943712]
[1641233950396,0.1561,46650.0,46647.0,0.14033567]
[1641233951098,0.0001,46650.0,46647.0,0.14033567]
[1641233951800,0.1891,46650.0,46647.0,0.26933567]
[1641233953002,0.0001,46650.0,46647.0,0.14033567]
[1641233953902,0.1831,46650.0,46647.0,0.27033567]
[1641233954103,0.0001,46660.0,46647.0,0.27033567]
[1641233954505,0.0001,46660.0,46648.0,0.009794]
[1641233955708,0.0001,46660.0,46648.0,0.200794]
[1641233956405,0.0001,46660.0,46654.0,0.14033567]
[1641233957707,0.0001,46660.0,46654.0,0.33533567]
[1641233958107,0.0001,46660.0,46654.0,0.34512967]
[1641233958306,0.0001,46660.0,46654.0,0.36656264]
[1641233958507,0.0001,46660.0,46659.0,0.14033567]
[1641233959107,0.0001,46660.0,46659.0,0.21413967]
[1641233959308,0.0001,46660.0,46659.0,0.21513967]
[1641233959707,0.0001,46660.0,46659.0,0.40513967]
[1641233961010,0.0001,46660.0,46659.0,0.21513967]
[1641233961612,0.0001,46660.0,46659.0,0.23756963]
[1641233961809,0.0001,46660.0,46659.0,0.42856963]
[1641233962013,0.0001,46660.0,46659.0,0.42956963]
[1641233963214,0.0001,46660.0,46659.0,0.23756963]
[1641233963817,0.0001,46660.0,46659.0,0.42956963]
[1641233964018,0.0001,46670.0,46659.0,0.60956963]
[1641233964217,0.0001,46670.0,46665.0,0.18]
[1641233964522,0.13613264,46678.0,46669.0,0.16176047]
[1641233964716,0.13613264,46678.0,46669.0,0.23329047]
[1641233964916,0.13613264,46678.0,46674.0,0.001]
[1641233965117,0.13613264,46678.0,46677.0,0.001]
[1641233965718,0.0001,46680.0,46677.0,0.001]
[1641233965918,0.0001,46680.0,46679.0,0.001]
[1641233966117,0.0001,46680.0,46679.0,0.06567]
[1641233966319,0.0001,46680.0,46679.0,0.06667]
[1641233966517,0.0001,46680.0,46679.0,0.20700567]
[1641233966919,0.0001,46680.0,46679.0,0.20600567]
[1641233967819,0.0001,46680.0,46679.0,0.39900567]
[1641233968020,0.0001,46680.0,46679.0,0.40000567]
[1641233968219,0.0001,46680.0,46679.0,0.42042671]
[1641233969219,0.0001,46680.0,46679.0,0.22742671]
[1641233969821,0.0001,46680.0,46679.0,0.41942671]
[1641233971722,0.0001,46680.0,46679.0,0.22742671]
[1641233971921,0.0001,46680.0,46679.0,0.41942671]
[1641233972327,0.09328,46680.0,46679.0,0.41942671]
[1641233972623,0.27328,46680.0,46679.0,0.192]
[1641233972823,0.27428,46680.0,46679.0,0.192]
[1641233973027,0.27328,46680.0,46674.0,1.20960669]
[1641233973222,0.18,46675.0,46674.0,1.20960669]
[1641233973422,0.181,46675.0,46674.0,1.20960669]
[1641233973623,1.308,46675.0,46670.0,1.45103536]
[1641233973825,0.181,46671.0,46670.0,1.45103536]
[1641233974225,1.308,46671.0,46670.0,1.45103536]
[1641233974425,1.307,46671.0,46670.0,1.45103536]
[1641233975226,1.32843346,46671.0,46670.0,1.45103536]
[1641233975527,1.32843346,46671.0,46658.0,1.9274]
[1641233975725,0.18,46665.0,46658.0,1.9274]
[1641233975926,0.26598,46665.0,46653.0,1.86793346]
[1641233976344,0.001,46662.0,46653.0,1.86793346]
[1641233976525,0.001,46662.0,46653.0,1.87772746]
[1641233977825,0.001,46662.0,46661.0,0.33233567]
[1641233978426,0.09317632,46664.0,46661.0,0.33233567]
[1641233978627,0.001,46662.0,46661.0,0.33233567]
[1641233978827,0.09317632,46664.0,46661.0,0.33233567]
[1641233979333,0.001,46662.0,46661.0,0.14033567]
[1641233979527,0.14033567,46670.0,46661.0,0.14033567]
[1641233979928,0.14033567,46670.0,46661.0,0.33533567]
[1641233980328,0.08435586,46669.0,46661.0,0.33533567]
[1641233981228,0.08435586,46669.0,46661.0,0.14033567]
[1641233981826,0.08435586,46669.0,46661.0,0.33633567]
[1641233982226,0.18,46667.0,46661.0,0.33633567]
[1641233982429,0.08435586,46669.0,46661.0,0.33633567]
[1641233982826,0.18,46666.0,46661.0,0.33633567]
[1641233983027,0.26826,46666.0,46661.0,0.33633567]
[1641233983228,0.26826,46666.0,46661.0,0.14033567]
[1641233983846,0.26826,46666.0,46661.0,0.33533567]
[1641233984046,0.08574725,46665.0,46661.0,0.33533567]
[1641233984447,0.18,46663.0,46661.0,0.33533567]
[1641233984650,0.18,46663.0,46661.0,0.195]
[1641233985149,1.127,46662.0,46661.0,0.195]
[1641233985549,0.18,46663.0,46661.0,0.195]
[1641233985749,0.02143623,46665.0,46661.0,0.195]
[1641233985948,0.02143623,46665.0,46661.0,0.363]
[1641233986949,0.0687442,46668.0,46661.0,0.363]
[1641233987851,0.0687442,46668.0,46661.0,0.185]
[1641233989253,0.0687442,46668.0,46658.0,0.02143118]
[1641233989952,0.0687442,46668.0,46658.0,0.21443118]
[1641233991353,0.0687442,46668.0,46658.0,0.02143118]
[1641233991856,0.0687442,46668.0,46658.0,0.21443118]
[1641233993155,0.0687442,46668.0,46658.0,0.02143118]
[1641233993557,0.18,46666.0,46656.0,0.14033567]
[1641233993855,0.18,46661.0,46658.0,0.192]
[1641233994255,0.18,46665.0,46658.0,0.192]
[1641233995357,0.06431378,46664.0,46656.0,0.14033567]
[1641233995954,0.06431378,46664.0,46656.0,0.33133567]
[1641233997257,0.06431378,46664.0,46656.0,0.14033567]
[1641233997859,0.06431378,46664.0,46656.0,0.33233567]
[1641233999262,0.06431378,46664.0,46656.0,0.14033567]
[1641233999764,0.83420356,46659.0,46657.0,0.96780286]
[1641233999964,0.83420356,46659.0,46657.0,1.05254286]
[1641234000363,0.14033567,46670.0,46657.0,0.08474]
[1641234000766,0.14033567,46676.0,46662.0,0.14033567]
[1641234000966,0.14033567,46676.0,46663.0,0.009794]
[1641234001167,0.14033567,46676.0,46667.0,0.18]
[1641234001367,0.14033567,46676.0,46667.0,0.24821]
[1641234001569,0.14033567,46676.0,46667.0,0.078004]
[1641234001767,0.14033567,46676.0,46667.0,0.6828479]
[1641234001968,0.14033567,46676.0,46667.0,0.8728479]
[1641234002769,0.14033567,46676.0,46668.0,0.14033567]
[1641234002969,0.14033567,46676.0,46668.0,1.10808591]
[1641234003172,0.14033567,46676.0,46675.0,0.6048439]
[1641234003974,0.14033567,46676.0,46675.0,0.7968439]
[1641234004375,0.26703156,46679.0,46675.0,0.7968439]
[1641234005177,0.26703156,46679.0,46675.0,0.192]
[1641234005378,0.08703156,46679.0,46674.0,0.14033567]
[1641234005684,0.0001,46680.0,46674.0,0.14033567]
[1641234006083,0.0001,46680.0,46674.0,0.33333567]
[1641234006581,0.06120388,46679.0,46674.0,0.33333567]
[1641234006978,0.0001,46680.0,46675.0,0.009794]
[1641234008078,0.0001,46680.0,46675.0,0.198794]
[1641234008878,0.0001,46680.0,46679.0,0.14033567]
[1641234009078,0.0001,46680.0,46679.0,0.20772567]
[1641234010078,0.0001,46680.0,46679.0,0.40372567]
[1641234011378,0.0001,46680.0,46679.0,0.40472567]
[1641234012079,0.0001,46680.0,46679.0,0.40372567]
[1641234013481,0.0001,46680.0,46679.0,0.20872567]
[1641234014081,0.0001,46680.0,46679.0,0.40372567]
[1641234015282,0.0001,46680.0,46679.0,0.20872567]
[1641234016188,0.0001,46680.0,46679.0,0.33733567]
[1641234017604,0.0001,46680.0,46679.0,0.14133567]
[1641234017786,0.84158409,46680.0,46679.0,0.14133567]
[1641234018085,0.84158409,46680.0,46679.0,0.33733567]
[1641234018385,0.0001,46680.0,46679.0,0.33733567]
[1641234018585,0.0001,46680.0,46679.0,1.30468717]
[1641234019087,0.0001,46680.0,46679.0,1.32610773]
[1641234019487,0.0001,46680.0,46679.0,1.13010773]
[1641234020089,0.0001,46680.0,46679.0,1.32610773]
[1641234021392,0.0001,46680.0,46679.0,1.13010773]
[1641234022090,0.0001,46680.0,46679.0,1.32510773]
[1641234023492,0.0001,46680.0,46679.0,1.13010773]
[1641234024194,0.0001,46680.0,46679.0,1.32610773]
[1641234025208,0.24401,46680.0,46679.0,1.90925361]
[1641234025410,0.24401,46680.0,46679.0,1.71325361]
[1641234025607,0.32192474,46680.0,46679.0,1.71325361]
[1641234026009,0.32192474,46680.0,46679.0,0.74590211]
[1641234026210,0.32192474,46680.0,46679.0,0.33333567]
[1641234026511,0.14192474,46680.0,46679.0,0.33333567]
[1641234027414,0.14192474,46680.0,46679.0,0.14133567]
[1641234028111,0.14192474,46680.0,46679.0,0.33333567]
[1641234029513,0.14192474,46680.0,46679.0,0.14133567]
[1641234029921,0.0001,46680.0,46679.0,0.14133567]
[1641234030123,0.0001,46680.0,46679.0,0.33333567]
[1641234031524,0.0001,46680.0,46679.0,0.14133567]
[1641234032125,0.0001,46680.0,46679.0,0.33333567]
[1641234032420,0.0001,46680.0,46679.0,1.90522599]
[1641234032926,0.1801,46680.0,46679.0,1.76389032]
[1641234033130,0.32043567,46680.0,46679.0,1.76389032]
[1641234033519,0.32043567,46680.0,46679.0,1.57189032]
[1641234033721,1.44743567,46680.0,46679.0,1.57189032]
[1641234033925,0.32043567,46680.0,46679.0,1.57189032]
[1641234034123,1.94843567,46680.0,46675.0,0.89731778]
[1641234034323,3.49463567,46680.0,46668.0,0.80236009]
[1641234034522,3.49463567,46680.0,46672.0,0.47068128]
[1641234034523,1.127,46675.0,46672.0,0.47068128]
[1641234034722,1.127,46675.0,46668.0,1.20936256]
[1641234034926,1.127,46675.0,46654.0,0.81001133]
[1641234034927,1.38,46673.0,46654.0,0.81001133]
[1641234035123,1.381,46673.0,46644.0,1.18117183]
[1641234035326,0.0001,46672.0,46644.0,0.91557183]
[1641234035522,0.61240701,46655.0,46644.0,0.86277183]
[1641234035726,0.2146,46642.0,46635.0,1.06605992]
[1641234035925,1.127,46634.0,46633.0,1.63171839]
[1641234036126,1.127,46634.0,46619.0,1.99232655]
[1641234036127,1.628,46634.0,46619.0,1.99232655]
[1641234036323,0.18,46621.0,46619.0,1.99232655]
[1641234036527,0.27536,46621.0,46610.0,0.99147834]
[1641234036828,0.27536,46621.0,46616.0,1.55322847]
[1641234036829,0.18,46617.0,46616.0,1.55322847]
[1641234037025,1.32846086,46617.0,46616.0,1.54852847]
[1641234037223,1.46879653,46617.0,46616.0,1.54852847]
[1641234037424,1.46979653,46617.0,46616.0,1.54852847]
[1641234037623,1.46979653,46617.0,46614.0,0.89994665]
[1641234037823,0.001,46615.0,46614.0,0.6190566]
[1641234038024,0.001,46615.0,46614.0,0.5860566]
[1641234038223,0.001,46615.0,46567.0,2.3072768]
[1641234038424,3.03700268,46601.0,46595.0,1.81526362]
[1641234038625,3.10520268,46601.0,46595.0,1.81526362]
[1641234038825,3.10520268,46601.0,46593.0,0.009794]
[1641234039327,3.10520268,46601.0,46590.0,0.009794]
[1641234039328,0.14033567,46599.0,46590.0,0.009794]
[1641234040123,0.14033567,46599.0,46590.0,0.191794]
[1641234040124,0.32133567,46599.0,46590.0,0.191794]
[1641234040326,0.32133567,46599.0,46591.0,0.02146227]
[1641234040726,0.181,46599.0,46596.0,0.18]
[1641234040926,0.02145901,46615.0,46598.0,0.02145901]
[1641234041127,0.14033567,46617.0,46605.0,0.18]
[1641234041326,0.14033567,46617.0,46603.0,0.14033567]
[1641234041729,0.16179395,46617.0,46604.0,0.18]
[1641234041930,0.14033567,46617.0,46610.0,0.18]
[1641234042128,0.14033567,46617.0,46612.0,0.18]
[1641234044231,0.14033567,46617.0,46612.0,0.375]
[1641234045430,0.14033567,46617.0,46612.0,0.18]
[1641234045832,0.14033567,46617.0,46611.0,0.18]
[1641234046232,0.14033567,46617.0,46612.0,0.194]
[1641234047534,0.14033567,46617.0,46610.0,0.074274]
[1641234048233,0.14033567,46617.0,46612.0,0.18]
[1641234048433,0.14033567,46617.0,46610.0,0.269274]
[1641234049133,0.14033567,46617.0,46610.0,0.204794]
[1641234049335,0.14033567,46617.0,46610.0,0.195]
[1641234049537,0.001,46611.0,46609.0,0.14033567]
[1641234049735,0.06768,46611.0,46609.0,0.14033567]
[1641234050135,0.001,46610.0,46609.0,0.33133567]
[1641234050536,0.06768,46611.0,46609.0,0.33233567]
[1641234050736,0.06768,46611.0,46609.0,0.33133567]
[1641234050937,0.001,46610.0,46609.0,0.33133567]
[1641234051136,0.001,46610.0,46609.0,0.33233567]
[1641234051338,0.18,46612.0,46609.0,0.33233567]
[1641234051535,0.02145878,46616.0,46609.0,0.14033567]
[1641234051937,0.02145878,46616.0,46609.0,0.21577567]
[1641234052138,0.02145878,46616.0,46609.0,0.40977567]
[1641234052139,0.001,46610.0,46609.0,0.40977567]
[1641234052341,0.001,46610.0,46609.0,0.41077567]
[1641234053542,0.001,46610.0,46609.0,0.21677567]
[1641234054242,0.001,46610.0,46609.0,0.41077567]
[1641234055542,0.001,46610.0,46609.0,0.21677567]
[1641234056244,0.14033567,46617.0,46609.0,0.41077567]
[1641234056442,0.14033567,46617.0,46609.0,0.40977567]
[1641234057543,1.65422179,46623.0,46616.0,0.18]
[1641234057747,0.02145213,46630.0,46620.0,0.18]
[1641234057943,0.02145213,46630.0,46620.0,0.24031]
[1641234058544,0.02145213,46630.0,46625.0,0.001]
[1641234058744,0.02145213,46630.0,46626.0,0.001]
[1641234059344,1.12795348,46627.0,46626.0,0.001]
[1641234059545,0.02145213,46630.0,46626.0,0.001]
[1641234059745,0.02145213,46630.0,46629.0,0.001]
[1641234059948,0.02245213,46630.0,46629.0,0.001]
[1641234060153,0.02145213,46630.0,46629.0,0.191]
[1641234061348,0.02145213,46630.0,46629.0,0.19]
[1641234061548,0.03124613,46630.0,46625.0,0.14033567]
[1641234062149,0.22024613,46630.0,46625.0,0.29933567]
[1641234062350,0.189,46630.0,46629.0,0.18]
[1641234062552,1.66831425,46633.0,46629.0,0.26001]
[1641234062848,1.12795348,46639.0,46632.0,0.181]
[1641234063049,1.12795348,46639.0,46638.0,0.18]
[1641234063248,1.12795348,46639.0,46638.0,0.181]
[1641234063450,1.12795348,46639.0,46638.0,0.32133567]
[1641234064150,1.12795348,46639.0,46638.0,0.51433567]
[1641234064352,0.14033567,46652.0,46638.0,0.51433567]
[1641234064550,0.009794,46647.0,46640.0,0.001]
[1641234065351,0.009794,46647.0,46638.0,0.33333567]
[1641234065554,0.009794,46640.0,46621.0,0.18]